fUST/lending_fUST_20240525
["ID","MTS","AMOUNT","RATE_DAILY","PERIOD"]
[327916457,1716625855952,-501.87745011,0.00024657,2]
[327916458,1716625855961,-507.29316458,0.00024657,2]
[327916459,1716625855970,-497.49642421,0.00024657,2]
[327916460,1716625855979,-504.77052735,0.00024657,2]
[327916461,1716625855989,-500.0,0.00024657,2]
[327916462,1716625855998,-571.92,0.00024657,2]
[327916463,1716625856007,-512.73820693,0.00024657,2]
[327916464,1716625856016,-402.65034821,0.00024657,2]
[327916465,1716625856026,-502.38038395,0.00024657,2]
[327916466,1716625856035,-500.0,0.00024657,2]
[327916467,1716625856045,-501.32398895,0.00024657,2]
[327916468,1716625856054,-504.24933375,0.00024657,2]
[327916469,1716625856065,-500.0,0.00024657,2]
[327916470,1716625856074,-500.0,0.00024657,2]
[327916471,1716625856084,-500.0,0.00024657,2]
[327916472,1716625856094,-500.0,0.00024657,2]
[327916473,1716625856104,-500.0,0.00024657,2]
[327916474,1716625856114,-503.18,0.00024657,2]
[327916475,1716625856124,-500.0,0.00024657,2]
[327916476,1716625856134,-2441.44,0.00024657,2]
[327916477,1716625856143,-505.35485726,0.00024657,2]
[327916478,1716625856153,-3812.61,0.00024657,2]
[327916479,1716625856163,-500.0,0.00024657,2]
[327916480,1716625856172,-502.46558012,0.00024657,2]
[327916481,1716625856181,-500.0,0.00024657,2]
[327916482,1716625856191,-500.0,0.00024657,2]
[327916483,1716625856200,-500.63688286,0.00024657,2]
[327916484,1716625856209,-501.34468191,0.00024657,2]
[327916485,1716625856218,-543.29000157,0.00024657,2]
[327916486,1716625856227,-500.0,0.00024657,2]
[327916487,1716625856236,-500.0,0.00024657,2]
[327916488,1716625856246,-545.2,0.00024657,2]
[327916489,1716625856255,-506.83749447,0.00024657,2]
[327916490,1716625856265,-500.0,0.00024657,2]
[327916491,1716625856274,-504.87946162,0.00024657,2]
[327916492,1716625856284,-500.0,0.00024657,2]
[327916493,1716625856294,-500.0,0.00024657,2]
[327916494,1716625856304,-500.0,0.00024657,2]
[327916495,1716625856314,-503.79155292,0.00024657,2]
[327916496,1716625856323,-500.0,0.00024657,2]
[327916497,1716625856332,-503.25188662,0.00024657,2]
[327916498,1716625856341,-501.55271133,0.00024657,2]
[327916499,1716625856350,-504.72851755,0.00024657,2]
[327916500,1716625856360,-500.0,0.00024657,2]
[327916501,1716625856369,-504.03873981,0.00024657,2]
[327916502,1716625856379,-502.78552361,0.00024657,2]
[327916503,1716625856389,-818.85,0.00024657,2]
[327916504,1716625856398,-500.0,0.00024657,2]
[327916505,1716625856408,-500.0,0.00024657,2]
[327916506,1716625856417,-501.81589474,0.00024657,2]
[327916507,1716625856426,-512.82,0.00024657,2]
[327916508,1716625856436,-500.0,0.00024657,2]
[327916509,1716625856445,-534.10791814,0.00024657,2]
[327916510,1716625856456,-500.0,0.00024657,2]
[327916511,1716625856467,-500.0,0.00024657,2]
[327916512,1716625856476,-500.0,0.00024657,3]
[327916513,1716625856484,-500.0,0.00024657,4]
[327916514,1716625856495,-500.0,0.00024657,5]
[327916515,1716625856505,-501.54519556,0.00024657,2]
[327916516,1716625856514,-500.0,0.00024657,6]
[327916517,1716625856523,-502.10007971,0.00024657,2]
[327916518,1716625856534,-436.83490474,0.00024657,2]
[327916519,1716625856544,-296.60532189,0.00024657,2]
[327916520,1716625856555,-500.0,0.00024657,2]
[327916521,1716625856567,-500.0,0.00024657,2]
[327916522,1716625856577,-504.54610483,0.00024657,2]
[327916523,1716625856587,-500.0,0.00024657,2]
[327916524,1716625856597,-504.09998201,0.00024657,2]
[327916525,1716625856608,-502.47896693,0.00024657,2]
[327916526,1716625856619,-699.92,0.00024657,2]
[327916527,1716625856715,-541.38724307,0.00024657,2]
[327916528,1716625856725,-503.78046351,0.00024657,2]
[327916529,1716625856735,-500.0,0.00024657,2]
[327916530,1716625856745,-625.69,0.00024657,2]
[327916531,1716625856755,-505.17178003,0.00024657,2]
[327916532,1716625856765,-1637.53,0.00024657,2]
[327916533,1716625856774,-493.11013951,0.00024657,2]
[327916534,1716625856783,-500.0,0.00024657,2]
[327916535,1716625856793,-500.0,0.00024657,2]
[327916536,1716625856804,-502.47785605,0.00024657,2]
[327916537,1716625856813,-500.0,0.00024657,2]
[327916538,1716625856824,-500.0,0.00024657,2]
[327916539,1716625856837,-505.33697808,0.00024657,2]
[327916540,1716625856847,-500.0,0.00024657,2]
[327916541,1716625856857,-500.0,0.00024657,2]
[327916542,1716625856866,-435.56711167,0.00024657,2]
[327916543,1716625856875,-503.46493133,0.00024657,2]
[327916544,1716625856885,-502.72923763,0.00024657,2]
[327916545,1716625856894,-500.96746633,0.00024657,2]
[327916546,1716625856906,-500.0,0.00024657,2]
[327916547,1716625856916,-500.0,0.00024657,2]
[327916548,1716625856926,-500.0,0.00024657,2]
[327916549,1716625856935,-500.0,0.00024657,3]
[327916550,1716625856945,-500.0,0.00024657,4]
[327916551,1716625856955,-500.0,0.00024657,2]
[327916552,1716625856967,-692.07,0.00024657,2]
[327916553,1716625856977,-500.0,0.00024657,5]
[327916554,1716625856987,-500.0,0.00024657,6]
[327916555,1716625856999,-505.81642457,0.00024657,2]
[327916556,1716625857008,-1647.0,0.00024657,2]
[327916557,1716625857017,-500.0,0.00024657,2]
[327916558,1716625857026,-500.0,0.00024657,2]
[327916559,1716625857036,-259.01537598,0.00024657,2]
[327916560,1716625857045,-500.0,0.00024657,2]
[327916561,1716625857055,-502.41934166,0.00024657,2]
[327916562,1716625857064,-500.0,0.00024657,2]
[327916563,1716625857074,-500.0,0.00024657,2]
[327916564,1716625857084,-500.0,0.00024657,2]
[327916565,1716625857094,-505.22313238,0.00024657,2]
[327916566,1716625857103,-383.64979638,0.00024657,2]
[327916567,1716625857114,-500.0,0.00024657,2]
[327916568,1716625857123,-223.17458693,0.00024657,2]
[327916569,1716625857132,-500.0,0.00024657,2]
[327916570,1716625857142,-155.78504898,0.00024657,2]
[327916571,1716625857151,-636.02954551,0.00024657,2]
[327916572,1716625857161,-507.79648214,0.00024657,2]
[327916573,1716625857171,-224.50069585,0.00024657,2]
[327916574,1716625857180,-500.0,0.00024657,2]
[327916575,1716625857189,-500.0,0.00024657,2]
[327916576,1716625857198,-538.80138771,0.00024657,2]
[327916577,1716625857208,-536.60611211,0.00024657,2]
[327916578,1716625857217,-500.0,0.00024657,2]
[327916579,1716625857227,-502.85849526,0.00024657,2]
[327916580,1716625857237,-500.0,0.00024657,2]
[327916581,1716625857246,-500.0,0.00024657,2]
[327916582,1716625857256,-502.08619999,0.00024657,2]
[327916583,1716625857265,-1590.4,0.00024657,2]
[327916584,1716625857275,-500.82523846,0.00024657,2]
[327916585,1716625857285,-500.0,0.00024657,2]
[327916586,1716625857294,-500.0,0.00024657,2]
[327916587,1716625857303,-500.0,0.00024657,2]
[327916588,1716625857312,-608.21,0.00024657,2]
[327916589,1716625857321,-500.0,0.00024657,2]
[327916590,1716625857330,-500.0,0.00024657,2]
[327916591,1716625857339,-502.2524954,0.00024657,2]
[327916592,1716625857348,-507.30790479,0.00024657,2]
[327916593,1716625857357,-4026.36,0.00024657,2]
[327916594,1716625857366,-503.82376572,0.00024657,2]
[327916595,1716625857375,-500.9218682,0.00024657,2]
[327916596,1716625857384,-500.0,0.00024657,2]
[327916597,1716625857392,-500.0,0.00024657,2]
[327916598,1716625857401,-250.0,0.00024657,2]
[327916599,1716625857411,-509.49,0.00024657,2]
[327916600,1716625857420,-501.57947105,0.00024657,2]
[327916601,1716625857429,-500.0,0.00024657,2]
[327916602,1716625857438,-718.05,0.00024657,2]
[327916603,1716625857447,-500.0,0.00024657,2]
[327916604,1716625857456,-4651.21,0.00024657,2]
[327916605,1716625857465,-1003.18380031,0.00024657,2]
[327916606,1716625857474,-521.57832183,0.00024657,2]
[327916607,1716625857482,-500.0,0.00024657,2]
[327916608,1716625857492,-807.26,0.00024657,2]
[327916609,1716625857502,-951.39,0.00024657,2]
[327916610,1716625857512,-500.0,0.00024657,2]
[327916611,1716625857522,-555.59617408,0.00024657,2]
[327916612,1716625857531,-491.37888688,0.00024657,2]
[327916613,1716625857540,-502.69552282,0.00024657,2]
[327916614,1716625857550,-503.14110643,0.00024657,2]
[327916615,1716625857559,-866.31,0.00024657,2]
[327916616,1716625857569,-1651.56,0.00024657,2]
[327916617,1716625857578,-501.20409517,0.00024657,2]
[327916618,1716625857587,-501.32346826,0.00024657,2]
[327916619,1716625857597,-500.0,0.00024657,2]
[327916620,1716625857609,-500.0,0.00024657,2]
[327916621,1716625857619,-500.0,0.00024657,2]
[327916622,1716625857629,-500.0,0.00024657,2]
[327916623,1716625857639,-728.56,0.00024657,2]
[327916624,1716625857648,-500.0,0.00024657,2]
[327916625,1716625857657,-500.0,0.00024657,2]
[327916626,1716625857669,-500.0,0.00024657,2]
[327916627,1716625857678,-500.0,0.00024657,2]
[327916628,1716625857688,-503.21639273,0.00024657,2]
[327916629,1716625857697,-5083.02,0.00024657,2]
[327916630,1716625857706,-501.10402047,0.00024657,2]
[327916631,1716625857716,-500.0,0.00024657,2]
[327916632,1716625857725,-500.0,0.00024657,2]
[327916633,1716625857735,-503.50299698,0.00024657,2]
[327916634,1716625857744,-500.0,0.00024657,2]
[327916635,1716625857754,-500.0,0.00024657,2]
[327916636,1716625857763,-500.0,0.00024657,2]
[327916637,1716625857772,-486.41650993,0.00024657,2]
[327916638,1716625857782,-500.0,0.00024657,2]
[327916639,1716625857791,-334.7434895,0.00024657,2]
[327916640,1716625857801,-500.0,0.00024657,2]
[327916641,1716625857810,-500.0,0.00024657,2]
[327916642,1716625857825,-500.0,0.00024657,2]
[327916643,1716625857834,-502.66893594,0.00024657,2]
[327916644,1716625857844,-518.77211069,0.00024657,2]
[327916645,1716625857853,-500.0,0.00024657,2]
[327916646,1716625857863,-500.0,0.00024657,2]
[327916647,1716625857872,-500.0,0.00024657,2]
[327916648,1716625857882,-502.23353885,0.00024657,2]
[327916649,1716625857892,-468.70591745,0.00024657,2]
[327916650,1716625857902,-503.5295245,0.00024657,2]
[327916651,1716625857916,-500.0,0.00024657,2]
[327916652,1716625857925,-606.33,0.00024657,2]
[327916653,1716625857934,-505.27757002,0.00024657,2]
[327916654,1716625857944,-500.0,0.00024657,2]
[327916655,1716625857954,-500.0,0.00024657,2]
[327916656,1716625857964,-500.0,0.00024657,2]
[327916657,1716625857974,-500.0,0.00024657,2]
[327916658,1716625857983,-502.16596063,0.00024657,2]
[327916659,1716625857992,-254.55407921,0.00024657,2]
[327916660,1716625858003,-500.0,0.00024657,2]
[327916661,1716625858012,-501.57841478,0.00024657,2]
[327916662,1716625858021,-500.0,0.00024657,2]
[327916663,1716625858030,-500.0,0.00024657,2]
[327916664,1716625858040,-503.08363937,0.00024657,2]
[327916665,1716625858049,-500.0,0.00024657,2]
[327916666,1716625858059,-500.0,0.00024657,2]
[327916667,1716625858069,-500.0,0.00024657,2]
[327916668,1716625858079,-500.0,0.00024657,2]
[327916669,1716625858089,-200.0,0.00024658,15]
[327916670,1716625858098,-380.0,0.00024658,2]
[327916671,1716625858108,-3611.335772,0.0002466,2]
[327916672,1716625858117,-160.0,0.00024811,4]
[327916673,1716625858127,-5457.75340104,0.000249,2]
[327916674,1716625858136,-528.15,0.00024931,3]
[327916675,1716625858145,-538.50046747,0.00024931,3]
[327916676,1716625858155,-500.0,0.00024931,3]
[327916677,1716625858167,-500.0,0.00024931,3]
[327916678,1716625858176,-500.0,0.00024931,3]
[327916679,1716625858185,-505.74556451,0.00024931,3]
[327916680,1716625858194,-500.0,0.00024931,3]
[327916681,1716625858203,-500.0,0.00024931,3]
[327916682,1716625858213,-212.29424424,0.00024931,3]
[327916683,1716625858222,-500.0,0.00024931,3]
[327916684,1716625858232,-659.81,0.00024931,3]
[327916685,1716625858242,-500.0,0.00024931,3]
[327916686,1716625858251,-500.0,0.00024931,3]
[327916687,1716625858261,-500.0,0.00024931,2]
[327916688,1716625858271,-503.15616817,0.00024931,3]
[327916689,1716625858280,-500.0,0.00024931,3]
[327916690,1716625858290,-768.52,0.00024931,3]
[327916691,1716625858299,-433.04274779,0.00024931,3]
[327916692,1716625858308,-500.0,0.00024931,2]
[327916693,1716625858317,-500.65107028,0.00024931,2]
[327916694,1716625858327,-500.0,0.00024931,3]
[327916695,1716625858336,-500.0,0.00024931,3]
[327916696,1716625858345,-500.0,0.00024931,3]
[327916697,1716625858355,-518.54925651,0.00024931,3]
[327916698,1716625858364,-500.0,0.00024931,3]
[327916699,1716625858374,-500.0,0.00024931,3]
[327916700,1716625858384,-500.0,0.00024931,3]
[327916701,1716625858393,-630.54425079,0.00024931,3]
[327916702,1716625858489,-395.51130978,0.00024931,3]
[327916703,1716625858499,-500.0,0.00024931,3]
[327916704,1716625858509,-503.19330787,0.00024931,3]
[327916705,1716625858518,-500.0,0.00024931,3]
[327916706,1716625858527,-504.46322621,0.00024931,3]
[327916707,1716625858536,-505.56223016,0.00024931,3]
[327916708,1716625858546,-500.0,0.00024931,3]
[327916709,1716625858555,-500.0,0.00024931,3]
[327916710,1716625858564,-514.4251185,0.00024931,3]
[327916711,1716625858573,-502.36844995,0.00024931,3]
[327916712,1716625858583,-500.0,0.00024931,3]
[327916713,1716625858592,-500.0,0.00024931,3]
[327916714,1716625858602,-504.65519632,0.00024931,3]
[327916715,1716625858612,-500.0,0.00024931,3]
[327916716,1716625858622,-500.0,0.00024931,3]
[327916717,1716625858632,-500.0,0.00024931,3]
[327916718,1716625858643,-500.0,0.00024931,3]
[327916719,1716625858652,-500.0,0.00024931,3]
[327916720,1716625858663,-524.08308209,0.00024931,3]
[327916721,1716625858672,-500.0,0.00024931,3]
[327916722,1716625858681,-500.0,0.00024931,3]
[327916723,1716625858690,-502.70917726,0.00024931,3]
[327916724,1716625858699,-500.0,0.00024931,3]
[327916725,1716625858709,-504.3407919,0.00024931,3]
[327916726,1716625858718,-512.55491126,0.00024931,3]
[327916727,1716625858728,-500.0,0.00024931,3]
[327916728,1716625858737,-504.25008939,0.00024931,3]
[327916729,1716625858747,-500.0,0.00024931,3]
[327916730,1716625858758,-500.0,0.00024931,3]
[327916731,1716625858768,-508.38766499,0.00024931,3]
[327916732,1716625858779,-537.15,0.00024931,3]
[327916733,1716625858789,-500.0,0.00024931,3]
[327916734,1716625858799,-628.21442346,0.00024931,3]
[327916735,1716625858809,-500.0,0.00024931,3]
[327916736,1716625858820,-500.0,0.00024931,3]
[327916737,1716625858835,-500.0,0.00024931,3]
[327916738,1716625858846,-500.0,0.00024931,3]
[327916739,1716625858857,-500.0,0.00024931,3]
[327916740,1716625858867,-570.39,0.00024931,3]
[327916741,1716625858879,-500.0,0.00024931,3]
[327916742,1716625858889,-502.80249442,0.00024931,3]
[327916743,1716625858901,-500.0,0.00024931,3]
[327916744,1716625858910,-412.47531229,0.00024931,3]
[327916745,1716625858920,-500.0,0.00024931,3]
[327916746,1716625858929,-500.0,0.00024931,3]
[327916747,1716625858939,-502.86841526,0.00024931,3]
[327916748,1716625858949,-500.0,0.00024931,3]
[327916749,1716625858958,-500.0,0.00024931,3]
[327916750,1716625858967,-500.0,0.00024931,3]
[327916751,1716625858976,-500.0,0.00024931,3]
[327916752,1716625858985,-500.0,0.00024931,3]
[327916753,1716625858995,-500.00644182,0.00024931,3]
[327916754,1716625859004,-500.0,0.00024931,3]
[327916755,1716625859013,-500.0,0.00024931,3]
[327916756,1716625859024,-500.0,0.00024931,3]
[327916757,1716625859034,-502.72389794,0.00024931,3]
[327916758,1716625859045,-500.0,0.00024931,3]
[327916759,1716625859054,-500.0,0.00024931,3]
[327916760,1716625859064,-500.0,0.00024931,3]
[327916761,1716625859073,-500.0,0.00024931,3]
[327916762,1716625859082,-500.0,0.00024931,3]
[327916763,1716625859092,-500.0,0.00024931,3]
[327916764,1716625859101,-614.95809854,0.00024931,3]
[327916765,1716625859110,-500.0,0.00024931,3]
[327916766,1716625859120,-500.0,0.00024931,3]
[327916767,1716625859129,-428.41803979,0.00024931,3]
[327916768,1716625859139,-503.25501467,0.00024931,3]
[327916769,1716625859149,-350.98967463,0.00024931,3]
[327916770,1716625859160,-502.85037632,0.00024931,3]
[327916771,1716625859170,-500.0,0.00024931,3]
[327916772,1716625859180,-500.0,0.00024931,3]
[327916773,1716625859189,-500.0,0.00024931,3]
[327916774,1716625859198,-500.0,0.00024931,3]
[327916775,1716625859208,-500.0,0.00024931,3]
[327916776,1716625859217,-721.25,0.00024931,3]
[327916777,1716625859226,-500.0,0.00024931,3]
[327916778,1716625859236,-507.69325695,0.00024931,3]
[327916779,1716625859245,-500.0,0.00024931,3]
[327916780,1716625859254,-500.0,0.00024931,3]
[327916781,1716625859264,-964.17,0.00024931,3]
[327916782,1716625859274,-500.0,0.00024931,3]
[327916783,1716625859283,-500.0,0.00024931,3]
[327916784,1716625859292,-504.52190704,0.00024931,3]
[327916785,1716625859303,-500.0,0.00024931,3]
[327916786,1716625859314,-536.36,0.00024931,3]
[327916787,1716625859323,-500.0,0.00024931,3]
[327916788,1716625859332,-500.0,0.00024931,3]
[327916789,1716625859342,-500.0,0.00024931,2]
[327916790,1716625859352,-500.0,0.00024931,3]
[327916791,1716625859361,-500.0,0.00024931,3]
[327916792,1716625859370,-500.0,0.00024931,3]
[327916793,1716625859379,-500.0,0.00024931,3]
[327916794,1716625859389,-500.0,0.00024931,3]
[327916795,1716625859397,-500.0,0.00024931,3]
[327916796,1716625859406,-554.71,0.00024931,3]
[327916797,1716625859416,-500.0,0.00024931,3]
[327916798,1716625859426,-709.62,0.00024931,3]
[327916799,1716625859435,-500.0,0.00024931,3]
[327916800,1716625859444,-500.0,0.00024931,3]
[327916801,1716625859453,-570.57,0.00024931,3]
[327916802,1716625859462,-500.0,0.00024931,3]
[327916803,1716625859471,-500.0,0.00024931,3]
[327916804,1716625859480,-500.0,0.00024931,3]
[327916805,1716625859490,-500.0,0.00024931,3]
[327916806,1716625859499,-526.11,0.00024931,3]
[327916807,1716625859511,-500.0,0.00024931,3]
[327916808,1716625859521,-500.0,0.00024931,3]
[327916809,1716625859531,-500.0,0.00024931,3]
[327916810,1716625859542,-500.0,0.00024931,3]
[327916811,1716625859552,-547.14,0.00024931,3]
[327916812,1716625859562,-500.0,0.00024931,3]
[327916813,1716625859572,-405.20569514,0.00024931,3]
[327916814,1716625859583,-500.0,0.00024931,3]
[327916815,1716625859592,-521.18,0.00024931,3]
[327916816,1716625859602,-500.0,0.00024931,3]
[327916817,1716625859611,-571.92,0.00024931,3]
[327916818,1716625859620,-500.0,0.00024931,3]
[327916819,1716625859631,-500.0,0.00024931,3]
[327916820,1716625859641,-552.73874847,0.00024931,3]
[327916821,1716625859652,-500.0,0.00024931,3]
[327916822,1716625859663,-500.0,0.00024931,3]
[327916823,1716625859672,-503.18,0.00024931,3]
[327916824,1716625859681,-500.0,0.00024931,3]
[327916825,1716625859691,-2441.44,0.00024931,3]
[327916826,1716625859701,-3812.61,0.00024931,3]
[327916827,1716625859712,-500.0,0.00024931,3]
[327916828,1716625859723,-184.1075444,0.00024931,3]
[327916829,1716625859733,-500.0,0.00024931,3]
[327916830,1716625859744,-500.0,0.00024931,3]
[327916831,1716625859754,-500.0,0.00024931,3]
[327916832,1716625859763,-545.2,0.00024931,3]
[327916833,1716625859773,-500.0,0.00024931,3]
[327916834,1716625859783,-500.0,0.00024931,3]
[327916835,1716625859792,-500.0,0.00024931,3]
[327916836,1716625859801,-500.0,0.00024931,3]
[327916837,1716625859811,-500.0,0.00024931,3]
[327916838,1716625859825,-500.0,0.00024931,3]
[327916839,1716625859834,-818.85,0.00024931,3]
[327916840,1716625859844,-500.0,0.00024931,3]
[327916841,1716625859854,-500.0,0.00024931,3]
[327916842,1716625859865,-512.82,0.00024931,3]
[327916843,1716625859875,-317.99125951,0.00024931,3]
[327916844,1716625859884,-500.0,0.00024931,3]
[327916845,1716625859894,-500.0,0.00024931,3]
[327916846,1716625859904,-500.0,0.00024931,3]
[327916847,1716625859916,-500.0,0.00024931,3]
[327916848,1716625859925,-699.92,0.00024931,3]
[327916849,1716625859934,-500.0,0.00024931,3]
[327916850,1716625859943,-625.69,0.00024931,3]
[327916851,1716625859952,-1637.53,0.00024931,3]
[327916852,1716625859961,-500.0,0.00024931,3]
[327916853,1716625859971,-504.14417448,0.00024931,3]
[327916854,1716625859980,-500.0,0.00024931,3]
[327916855,1716625859989,-503.21111915,0.00024931,3]
[327916856,1716625859998,-500.0,0.00024931,3]
[327916857,1716625860007,-500.0,0.00024931,3]
[327916858,1716625860017,-500.0,0.00024931,3]
[327916859,1716625860026,-507.29314807,0.00024931,3]
[327916860,1716625860036,-500.0,0.00024931,3]
[327916861,1716625860045,-692.07,0.00024931,3]
[327916862,1716625860054,-1647.0,0.00024931,3]
[327916863,1716625860063,-500.0,0.00024931,3]
[327916864,1716625860155,-500.0,0.00024931,3]
[327916865,1716625860166,-507.90801461,0.00024931,3]
[327916866,1716625860175,-505.87168932,0.00024931,3]
[327916867,1716625860184,-502.89335461,0.00024931,3]
[327916868,1716625860194,-500.0,0.00024931,3]
[327916869,1716625860204,-500.0,0.00024931,3]
[327916870,1716625860213,-500.0,0.00024931,3]
[327916871,1716625860222,-503.91302261,0.00024931,3]
[327916872,1716625860231,-500.0,0.00024931,3]
[327916873,1716625860241,-500.0,0.00024931,3]
[327916874,1716625860250,-503.93937024,0.00024931,3]
[327916875,1716625860259,-500.0,0.00024931,3]
[327916876,1716625860269,-1590.4,0.00024931,3]
[327916877,1716625860278,-500.0,0.00024931,3]
[327916878,1716625860287,-500.0,0.00024931,3]
[327916879,1716625860296,-500.0,0.00024931,3]
[327916880,1716625860305,-608.21,0.00024931,3]
[327916881,1716625860317,-500.0,0.00024931,3]
[327916882,1716625860327,-500.0,0.00024931,3]
[327916883,1716625860337,-4026.36,0.00024931,3]
[327916884,1716625860346,-507.5666958,0.00024931,3]
[327916885,1716625860356,-500.0,0.00024931,3]
[327916886,1716625860366,-250.0,0.00024931,3]
[327916887,1716625860377,-509.49,0.00024931,3]
[327916888,1716625860386,-500.0,0.00024931,3]
[327916889,1716625860396,-718.05,0.00024931,3]
[327916890,1716625860405,-500.0,0.00024931,3]
[327916891,1716625860416,-4651.21,0.00024931,3]
[327916892,1716625860425,-500.0,0.00024931,3]
[327916893,1716625860434,-807.26,0.00024931,3]
[327916894,1716625860444,-951.39,0.00024931,3]
[327916895,1716625860453,-500.0,0.00024931,3]
[327916896,1716625860462,-866.31,0.00024931,3]
[327916897,1716625860473,-1651.56,0.00024931,3]
[327916898,1716625860482,-500.0,0.00024931,3]
[327916899,1716625860491,-500.0,0.00024931,3]
[327916900,1716625860502,-500.0,0.00024931,3]
[327916901,1716625860512,-500.0,0.00024931,3]
[327916902,1716625860522,-728.56,0.00024931,3]
[327916903,1716625860531,-500.0,0.00024931,3]
[327916904,1716625860542,-500.0,0.00024931,3]
[327916905,1716625860552,-505.68095715,0.00024931,3]
[327916906,1716625860561,-500.0,0.00024931,3]
[327916907,1716625860570,-5083.02,0.00024931,3]
[327916908,1716625860580,-500.0,0.00024931,3]
[327916909,1716625860590,-500.0,0.00024931,3]
[327916910,1716625860599,-500.0,0.00024931,3]
[327916911,1716625860609,-500.0,0.00024931,3]
[327916912,1716625860619,-500.0,0.00024931,3]
[327916913,1716625860630,-500.0,0.00024931,3]
[327916914,1716625860639,-503.59820658,0.00024931,3]
[327916915,1716625860650,-502.05809924,0.00024931,3]
[327916916,1716625860660,-466.5479432,0.00024931,3]
[327916917,1716625860671,-500.0,0.00024931,3]
[327916918,1716625860681,-500.0,0.00024931,3]
[327916919,1716625860690,-500.0,0.00024931,3]
[327916920,1716625860699,-500.0,0.00024931,3]
[327916921,1716625860708,-606.33,0.00024931,3]
[327916922,1716625860718,-500.0,0.00024931,3]
[327916923,1716625860728,-500.0,0.00024931,3]
[327916924,1716625860739,-500.0,0.00024931,3]
[327916925,1716625860749,-500.0,0.00024931,3]
[327916926,1716625860758,-500.0,0.00024931,3]
[327916927,1716625860767,-500.0,0.00024931,3]
[327916928,1716625860776,-500.0,0.00024931,3]
[327916929,1716625860786,-500.0,0.00024931,3]
[327916930,1716625860795,-500.0,0.00024931,3]
[327916931,1716625860804,-500.0,0.00024931,3]
[327916932,1716625860814,-150.83408251,0.00024937,2]
[327916933,1716625860824,-401.04849883,0.00025,2]
[327916934,1716625860837,-894.71433164,0.00025,2]
[327916935,1716625860846,-13369.62058427,0.00025,2]
[327916936,1716625860855,-583.4132861,0.00025,2]
[327916937,1716625860866,-419.599999,0.00025,2]
[327916938,1716625860875,-312.73817107,0.00025,2]
[327916939,1716625860893,-16120.07687105,0.00025,2]
[327916940,1716625860913,-160.0,0.00025065,5]
[327916941,1716625860927,-528.15,0.00025205,4]
[327916942,1716625860943,-176.2673483,0.00025205,4]
[327916943,1716625860961,-500.0,0.00025205,4]
[327916944,1716625860979,-500.0,0.00025205,4]
[327916945,1716625860996,-500.0,0.00025205,4]
[327916946,1716625861011,-659.81,0.00025205,4]
[327916947,1716625861027,-500.0,0.00025205,4]
[327916948,1716625861044,-500.0,0.00025205,4]
[327916949,1716625861056,-507.17313859,0.00025205,2]
[327916950,1716625861071,-500.0,0.00025205,4]
[327916951,1716625861087,-768.52,0.00025205,4]
[327916952,1716625861104,-500.0,0.00025205,2]
[327916953,1716625861123,-500.0,0.00025205,4]
[327916954,1716625861134,-500.0,0.00025205,4]
[327916955,1716625861146,-500.0,0.00025205,4]
[327916956,1716625861160,-500.0,0.00025205,4]